bitfinex-derivatives/quotes_BTCF0:USTF0_20240902
["timestamp","ask_amount","ask_price","bid_price","bid_amount"]
[1725251708822,0.18967313,57618.0,57614.0,0.3608]
[1725251708823,0.18967313,57618.0,57616.0,0.06924895]
[1725251709318,0.18967313,57618.0,57617.0,0.060748]
[1725251709715,0.14,57627.0,57615.0,0.14]
[1725251709716,0.19361243,57623.0,57622.0,0.060743]
[1725251709912,0.060738,57627.0,57622.0,0.060743]
[1725251710213,0.19361243,57623.0,57622.0,0.060743]
[1725251710639,0.060738,57627.0,57622.0,0.060743]
[1725251710815,0.19212271,57623.0,57622.0,0.060743]
[1725251711113,0.19212271,57624.0,57622.0,0.060743]
[1725251711323,0.06909912,57629.0,57622.0,0.0692536]
[1725251711518,0.060733,57632.0,57622.0,0.1299966]
[1725251711519,0.18945876,57623.0,57622.0,0.1299966]
[1725251711821,0.18945876,57624.0,57623.0,0.060742]
[1725251712024,0.06909912,57630.0,57624.0,0.060741]
[1725251712218,0.06909912,57630.0,57624.0,0.155741]
[1725251712420,0.32945876,57625.0,57624.0,0.060741]
[1725251712619,0.32945876,57625.0,57618.0,0.06927404]
[1725251712620,0.060746,57619.0,57618.0,0.06927404]
[1725251712832,0.14,57619.0,57616.0,0.06927404]
[1725251713020,0.14,57617.0,57613.0,0.06927404]
[1725251713321,0.24634719,57616.0,57614.0,0.06927404]
[1725251714222,0.24634719,57616.0,57614.0,0.08402535]
[1725251715024,0.24634719,57616.0,57612.0,0.36694572]
[1725251715326,0.24634719,57616.0,57613.0,0.13224982]
[1725251715516,0.24634719,57616.0,57614.0,0.13224982]
[1725251715725,0.24634719,57616.0,57612.0,0.36694572]
[1725251715922,0.24634719,57616.0,57613.0,0.13225127]
[1725251716131,0.24634719,57616.0,57612.0,0.36694572]
[1725251716325,0.060751,57615.0,57613.0,0.13225372]
[1725251716523,0.060751,57615.0,57612.0,0.36694572]
[1725251716720,0.18480536,57614.0,57613.0,0.13225394]
[1725251716923,0.18480536,57614.0,57613.0,0.13225345]
[1725251721518,0.14138799,57614.0,57613.0,0.23622127]
[1725251721715,0.19627032,57616.0,57613.0,0.23621604]
[1725251722032,0.19627032,57619.0,57614.0,0.13224822]
[1725251722326,0.060746,57620.0,57615.0,0.13224822]
[1725251722521,0.060746,57620.0,57616.0,0.13224822]
[1725251722722,0.18676334,57619.0,57617.0,0.13224822]
[1725251723021,0.18676334,57619.0,57618.0,0.13224822]
[1725251724630,0.19936107,57620.0,57618.0,0.19299522]
[1725251724929,0.20074,57625.0,57619.0,0.13224822]
[1725251725240,0.19936107,57621.0,57620.0,0.13224822]
[1725251725632,0.20074,57625.0,57620.0,0.13224822]
[1725251725832,0.20074,57625.0,57621.0,0.13224822]
[1725251726147,0.19391107,57623.0,57619.0,0.060746]
[1725251726336,0.19391107,57624.0,57620.0,0.1322358]
[1725251726536,0.20074,57625.0,57621.0,0.1322358]
[1725251726829,0.18236919,57624.0,57623.0,0.3608]
[1725251727022,0.18236919,57624.0,57623.0,0.49303444]
[1725251727427,0.18236919,57624.0,57623.0,0.13223444]
[1725251727835,0.00026015,57626.0,57623.0,1.01367476]
[1725251728130,0.19467171,57625.0,57624.0,0.19297476]
[1725251728926,0.19467171,57625.0,57624.0,0.71357476]
[1725251729529,0.00026015,57626.0,57625.0,0.06074]
[1725251729724,0.00026015,57626.0,57625.0,0.71357476]
[1725251730835,0.00026015,57626.0,57625.0,0.71355845]
[1725251733132,0.00026015,57626.0,57625.0,0.71970563]
[1725251734378,0.00026015,57626.0,57625.0,0.19910563]
[1725251734533,0.18498749,57626.0,57625.0,0.19910563]
[1725251734729,0.18498749,57626.0,57625.0,0.06688718]
[1725251736935,0.18498749,57626.0,57625.0,0.00614718]
[1725251737141,0.18498749,57626.0,57623.0,0.3608]
[1725251738643,0.0458,57625.0,57623.0,0.3608]
[1725251738852,0.0458,57625.0,57623.0,0.36702013]
[1725251739102,0.0458,57625.0,57624.0,0.13221959]
[1725251739288,0.00026015,57626.0,57624.0,0.13221959]
[1725251739447,0.18765753,57625.0,57623.0,0.36702013]
[1725251739709,0.18765753,57625.0,57624.0,0.13221787]
[1725251740441,0.18765753,57625.0,57624.0,0.19295887]
[1725251741750,0.00026015,57626.0,57625.0,0.06074]
[1725251741956,0.00026015,57626.0,57625.0,0.19295787]
[1725251743452,0.00026015,57626.0,57625.0,0.06074]
[1725251745556,0.00026015,57626.0,57625.0,0.12996023]
[1725251745954,0.00026015,57626.0,57625.0,0.06074]
[1725251746154,0.00026015,57626.0,57625.0,0.12996023]
[1725251748459,0.00026015,57626.0,57625.0,0.06074]
[1725251751650,0.00066015,57626.0,57625.0,0.06074]
[1725251751850,0.00066015,57626.0,57625.0,0.42154]
[1725251752562,0.00066015,57626.0,57625.0,0.65771962]
[1725251754457,0.00066015,57626.0,57625.0,0.65777379]
[1725251754650,0.00066015,57626.0,57625.0,0.553752]
[1725251756058,0.00066015,57626.0,57625.0,0.71467556]
[1725251756372,0.00066015,57626.0,57625.0,0.553752]
[1725251756567,0.00066015,57626.0,57625.0,0.7146794]
[1725251756959,0.00066015,57626.0,57625.0,0.55375525]
[1725251759161,0.19075798,57626.0,57625.0,0.49301525]
[1725251759490,0.25149698,57626.0,57625.0,0.3608]
[1725251759867,0.34469698,57626.0,57625.0,0.3608]
[1725251760261,0.78475798,57626.0,57621.0,0.08669729]
[1725251760466,0.061143,57622.0,57621.0,0.08669729]
[1725251760670,0.060744,57621.0,57620.0,0.08669729]
[1725251760871,0.060744,57621.0,57619.0,0.08669729]
[1725251760872,0.109744,57621.0,57619.0,0.08669729]
[1725251761172,0.061146,57620.0,57616.0,0.08669729]
[1725251761374,0.0004,57617.0,57616.0,0.08669729]
[1725251761584,0.0004,57617.0,57615.0,0.45367164]
[1725251761877,0.0004,57616.0,57615.0,0.45367164]
[1725251762066,0.0004,57616.0,57615.0,0.36697435]
[1725251762269,0.05,57616.0,57615.0,0.36697435]
[1725251767375,0.00658466,57616.0,57615.0,0.49921747]
[1725251767574,0.19722254,57616.0,57615.0,0.49921747]
[1725251767792,0.19722254,57616.0,57615.0,0.49961747]
[1725251768181,0.25797254,57616.0,57615.0,0.49961747]
[1725251768475,0.25797254,57616.0,57615.0,0.21924525]
[1725251768683,0.25797254,57616.0,57615.0,0.0004]
[1725251769697,1.43940254,57616.0,57615.0,0.0004]
[1725251769875,1.37865254,57616.0,57611.0,0.06926938]
[1725251770073,0.5008,57612.0,57608.0,0.06926938]
[1725251770274,0.14,57609.0,57608.0,0.06926938]
[1725251770592,0.060758,57608.0,57607.0,0.06926938]
[1725251770891,0.26060975,57608.0,57607.0,0.06926938]
[1725251771183,0.060759,57607.0,57606.0,0.06926938]
[1725251771573,0.26061075,57607.0,57606.0,0.06926938]
[1725251772176,0.26061075,57607.0,57605.0,0.06926938]
[1725251772686,0.06076,57606.0,57605.0,0.06926938]
[1725251773188,0.060762,57604.0,57602.0,0.07535587]
[1725251773384,0.0486,57603.0,57602.0,0.07535587]
[1725251773687,0.23979973,57603.0,57602.0,0.07535587]
[1725251773885,0.23979973,57603.0,57602.0,0.00608649]
[1725251774176,0.060764,57602.0,57601.0,0.06926938]
[1725251774380,0.200764,57602.0,57600.0,0.06926938]
[1725251774596,0.14,57601.0,57596.0,0.43006938]
[1725251774888,0.14,57597.0,57596.0,0.3608]
[1725251775184,0.32697493,57597.0,57596.0,0.3608]
[1725251775479,0.32697493,57597.0,57590.0,0.06926938]
[1725251775893,0.060773,57594.0,57589.0,0.06926938]
[1725251776179,0.23095766,57593.0,57588.0,0.49692453]
[1725251776379,0.23095766,57593.0,57589.0,0.06926938]
[1725251776578,0.23095766,57593.0,57588.0,0.49692453]
[1725251776977,0.23095766,57593.0,57589.0,0.06926938]
[1725251777172,0.23095766,57593.0,57588.0,0.49692453]
[1725251777575,0.0004,57589.0,57588.0,0.49692453]
[1725251778075,0.0004,57589.0,57588.0,0.92845515]
[1725251779180,0.0478,57601.0,57588.0,0.92845515]
[1725251779181,0.0478,57601.0,57588.0,1.99728832]
[1725251779485,0.0478,57601.0,57599.0,0.060767]
[1725251779683,0.19629331,57600.0,57599.0,0.060767]
[1725251780075,0.18517743,57601.0,57599.0,0.060767]
[1725251780271,0.00026039,57602.0,57599.0,0.060767]
[1725251780789,0.18517743,57601.0,57599.0,0.060767]
[1725251781979,0.18517743,57601.0,57599.0,0.06680554]
[1725251785293,0.18517743,57601.0,57599.0,0.00603854]
[1725251785484,0.18517743,57601.0,57597.0,0.3608]
[1725251785682,0.0004,57598.0,57597.0,0.3608]
[1725251785986,0.18264006,57598.0,57597.0,0.3608]
[1725251787055,0.18264006,57598.0,57597.0,0.36683545]
[1725251787786,0.18264006,57598.0,57597.0,0.00603545]
[1725251788095,0.18264006,57598.0,57595.0,0.12977264]
[1725251788394,0.0004,57596.0,57595.0,0.060771]
[1725251789788,0.0004,57596.0,57595.0,0.06688414]
[1725251794295,0.0004,57596.0,57595.0,1.27436627]
[1725251794591,0.00026039,57602.0,57601.0,0.060765]
[1725251794893,0.00026039,57602.0,57601.0,0.561965]
[1725251795284,0.00026039,57602.0,57601.0,0.609865]
[1725251796189,0.00026039,57602.0,57601.0,0.74213784]
[1725251796388,0.00026039,57602.0,57601.0,0.8287006]
[1725251796808,0.00026039,57602.0,57601.0,0.74213784]
[1725251798796,0.00026039,57602.0,57601.0,0.74213473]
[1725251799212,0.00026039,57602.0,57601.0,0.84616726]
[1725251800597,0.00026039,57602.0,57601.0,0.74213473]
[1725251801195,0.00026039,57602.0,57601.0,1.86293473]
[1725251801802,0.00026039,57602.0,57601.0,1.86907858]
[1725251802794,0.00026039,57602.0,57601.0,2.03006046]
[1725251804000,0.00026039,57602.0,57601.0,2.03005527]
[1725251804409,0.00026039,57602.0,57601.0,2.03005743]
[1725251804609,0.00026039,57602.0,57601.0,1.86907596]
[1725251806007,0.00026039,57602.0,57601.0,1.80907596]
[1725251807301,0.00026039,57602.0,57601.0,1.20907596]
[1725251808397,0.00026039,57602.0,57601.0,1.20908035]
[1725251812406,0.0485,57613.0,57608.0,0.060757]
[1725251812603,0.0485,57613.0,57612.0,0.0004]
[1725251813005,0.82791825,57613.0,57612.0,0.06965566]
[1725251813306,0.30719825,57613.0,57612.0,0.06965566]
[1725251814646,0.30719825,57613.0,57612.0,0.0004]
[1725251815009,0.24644525,57613.0,57612.0,0.0004]
[1725251816806,0.24644525,57613.0,57612.0,0.00656977]
[1725251817005,0.24644525,57613.0,57612.0,0.0004]
[1725251820321,0.24644525,57613.0,57612.0,0.00671693]
[1725251820509,0.24644525,57613.0,57612.0,0.0004]
[1725251821020,0.24644525,57613.0,57612.0,0.006421]
[1725251821807,0.24644525,57613.0,57612.0,0.0004]
[1725251821808,0.38719825,57613.0,57612.0,0.0004]
[1725251822001,1.50791825,57613.0,57612.0,0.0693466]
[1725251822209,0.060758,57608.0,57607.0,0.00026039]
[1725251822513,0.060758,57608.0,57607.0,0.06962903]
[1725251822514,0.501958,57608.0,57607.0,0.06962903]
[1725251822818,1.82376211,57608.0,57607.0,0.06962903]
[1725251823205,1.82376211,57608.0,57607.0,0.00026039]
[1725251823912,1.82376211,57608.0,57607.0,0.06964348]
[1725251824310,1.22376211,57608.0,57607.0,0.06964348]
[1725251825520,1.22376211,57608.0,57607.0,0.00026039]
[1725251825521,1.82376211,57608.0,57607.0,0.00026039]
[1725251826620,1.89305819,57608.0,57607.0,0.00026039]
[1725251826813,1.82376211,57608.0,57607.0,0.00026039]
[1725251827419,0.06076,57606.0,57605.0,0.0520115]
[1725251827612,0.9612,57606.0,57603.0,0.0520115]
[1725251827819,0.14964582,57604.0,57603.0,0.0520115]
[1725251828191,0.33282128,57604.0,57603.0,0.0520115]
[1725251828308,1.45362128,57604.0,57603.0,0.0520115]
[1725251828506,0.060763,57603.0,57602.0,0.0520115]
[1725251828705,0.141163,57603.0,57602.0,0.0520115]
[1725251828914,0.84513846,57603.0,57602.0,0.0520115]
[1725251829121,1.44513846,57603.0,57602.0,0.0520115]
[1725251829615,0.060764,57602.0,57601.0,0.0520115]
[1725251829835,0.187764,57602.0,57601.0,0.0520115]
[1725251830021,0.187764,57602.0,57597.0,0.06938309]
[1725251830022,1.44610821,57602.0,57597.0,0.06928307]
[1725251830221,0.141169,57598.0,57597.0,0.06928307]
[1725251830521,0.27870821,57598.0,57595.0,0.05196331]
[1725251830821,0.060775,57592.0,57591.0,0.0008]
[1725251831018,0.141175,57592.0,57591.0,0.07005693]
[1725251831226,0.32438099,57592.0,57591.0,0.07005693]
[1725251831528,0.84530099,57592.0,57591.0,0.0008]
[1725251832825,0.32438099,57592.0,57591.0,0.0008]
[1725251834422,0.24438099,57592.0,57591.0,0.0008]
[1725251837016,0.18360599,57592.0,57591.0,0.141576]
[1725251837527,0.18360599,57592.0,57591.0,0.21083293]
[1725251838322,0.18360599,57592.0,57591.0,0.141576]
[1725251839026,0.18360599,57592.0,57591.0,0.061576]
[1725251841617,0.18360599,57592.0,57591.0,0.13083293]
[1725251841920,0.0004,57592.0,57591.0,0.141576]
[1725251845036,0.19377296,57592.0,57591.0,0.141576]
[1725251848234,0.19377296,57592.0,57591.0,0.22813293]
[1725251849329,0.19377296,57592.0,57591.0,0.27387537]
[1725251849532,0.0004,57592.0,57591.0,0.27387537]
[1725251849987,0.00026039,57597.0,57591.0,0.49389937]
[1725251850148,0.060773,57594.0,57593.0,0.08663713]
[1725251850228,0.140774,57593.0,57592.0,0.08663713]
[1725251850451,0.140774,57593.0,57591.0,0.08743713]
[1725251850630,0.34012199,57593.0,57591.0,0.08743713]
[1725251850928,0.34012199,57593.0,57591.0,0.08663713]
[1725251851133,0.34012199,57593.0,57591.0,0.08783713]
[1725251851633,0.34012199,57593.0,57592.0,0.13230388]
[1725251852232,0.26012199,57593.0,57592.0,0.21900468]
[1725251852528,0.26012199,57593.0,57592.0,0.21901772]
[1725251853028,0.26012199,57593.0,57592.0,0.13230388]
[1725251854739,0.34012199,57593.0,57592.0,0.13230388]
[1725251854934,0.34012199,57593.0,57592.0,0.08675087]
[1725251855127,0.27934799,57593.0,57591.0,0.08795087]
[1725251855321,0.061175,57592.0,57591.0,0.0012]
[1725251855626,0.25493535,57592.0,57591.0,0.0012]
[1725251855833,0.82205535,57592.0,57591.0,0.0012]
[1725251856135,0.30113535,57592.0,57591.0,0.0012]
[1725251856333,0.82205535,57592.0,57591.0,0.0012]
[1725251858234,0.30113535,57592.0,57591.0,0.0012]
[1725251858532,0.25493535,57592.0,57591.0,0.0012]
[1725251866338,0.25493535,57592.0,57591.0,0.07058763]
[1725251867948,0.25493535,57592.0,57591.0,0.0012]
[1725251870841,0.25493535,57592.0,57591.0,0.07058763]
[1725251871730,0.25493535,57592.0,57591.0,0.0012]
[1725251876372,0.29493535,57592.0,57591.0,0.0012]
[1725251876948,0.25493535,57592.0,57591.0,0.0012]
[1725251878142,0.19416035,57592.0,57591.0,0.061976]
[1725251878649,0.27416035,57592.0,57591.0,0.13615087]
[1725251878840,0.27416035,57592.0,57591.0,0.0494]
[1725251879248,0.33493535,57592.0,57591.0,0.0012]
[1725251882587,0.19416035,57592.0,57591.0,0.061976]
[1725251882848,0.19416035,57592.0,57591.0,0.19428654]
[1725251883236,0.19416035,57592.0,57591.0,0.28107146]
[1725251883447,0.19416035,57592.0,57591.0,0.19428654]
[1725251886140,0.19416035,57592.0,57591.0,0.19428692]
[1725251886844,0.19416035,57592.0,57591.0,0.28109588]
[1725251887352,0.19416035,57592.0,57591.0,0.0012]
[1725251887650,0.25493535,57592.0,57591.0,0.0012]
[1725251888840,0.19416035,57592.0,57591.0,0.0012]
[1725251889065,0.19416035,57592.0,57591.0,0.155576]
[1725251889388,0.19416035,57592.0,57591.0,0.2702266]
[1725251889481,0.19416035,57592.0,57591.0,0.27022593]
[1725251889850,0.19416035,57592.0,57591.0,0.200776]
[1725251890847,0.19416035,57592.0,57591.0,0.27021733]
[1725251891444,0.19416035,57592.0,57591.0,0.14]
[1725251892349,0.19416035,57592.0,57591.0,0.0473]
[1725251894247,0.25493535,57592.0,57591.0,0.0473]
[1725251894453,0.25493535,57592.0,57591.0,0.0012]
[1725251895360,0.25493535,57592.0,57591.0,0.08800896]
[1725251895862,0.25493535,57592.0,57591.0,0.0012]
[1725251899471,0.25493535,57592.0,57591.0,0.13351291]
[1725251902063,0.25493535,57592.0,57591.0,0.08800399]
[1725251902262,0.19416035,57592.0,57591.0,0.0012]
[1725251903552,0.55496035,57592.0,57591.0,0.0012]
[1725251903959,0.61573535,57592.0,57591.0,0.0012]
[1725251904854,0.70232254,57592.0,57591.0,0.0012]
[1725251905562,0.70232254,57592.0,57591.0,0.0532898]
[1725251905883,0.76309754,57592.0,57591.0,0.05329024]
[1725251906055,0.060777,57590.0,57586.0,0.05209024]
[1725251906349,0.060777,57590.0,57584.0,0.05209024]
[1725251906350,0.3608,57587.0,57584.0,0.05209024]
[1725251906554,0.3608,57587.0,57583.0,0.05209024]
[1725251906555,0.060783,57584.0,57583.0,0.05209024]
[1725251906958,0.26028752,57584.0,57583.0,0.05209024]
[1725251907352,0.26028752,57584.0,57582.0,0.05209024]
[1725251907583,0.060785,57582.0,57580.0,0.05209024]
[1725251907773,0.3608,57581.0,57580.0,0.05209024]
[1725251908064,0.55784142,57581.0,57580.0,0.05209024]
[1725251908265,0.55784142,57581.0,57579.0,0.08]
[1725251908470,0.06912308,57580.0,57579.0,0.08]
[1725251908864,0.2584709,57580.0,57579.0,0.08]
[1725251909063,0.18934782,57580.0,57579.0,0.08]
[1725251912173,0.18934782,57580.0,57578.0,0.00608069]
[1725251912469,0.18934782,57580.0,57576.0,0.22759599]
[1725251913671,0.0004,57577.0,57576.0,0.22759599]
[1725251913871,0.0004,57577.0,57576.0,0.35993199]
[1725251914075,0.18711752,57577.0,57576.0,0.35993248]
[1725251914561,0.18711752,57577.0,57576.0,0.060792]
[1725251914757,0.18711752,57577.0,57576.0,0.00611033]
[1725251914969,0.18711752,57577.0,57574.0,0.52760399]
[1725251915161,0.0004,57575.0,57574.0,0.44760399]
[1725251915489,0.25133246,57575.0,57574.0,0.3612]
[1725251916070,0.61213246,57575.0,57574.0,0.00643225]
[1725251917565,0.25133246,57575.0,57574.0,0.00643225]
[1725251922236,0.25133246,57575.0,57574.0,0.07572172]
[1725251922869,0.25133246,57575.0,57574.0,0.06968947]
[1725251924874,0.25133246,57575.0,57574.0,0.0004]
[1725251925680,0.19053946,57575.0,57574.0,0.0004]
[1725251926682,0.18822525,57580.0,57574.0,0.0004]
[1725251926984,0.06079,57578.0,57576.0,0.06929088]
[1725251927280,0.19019226,57577.0,57576.0,0.06929088]
[1725251927475,0.19019226,57577.0,57575.0,0.06929088]
[1725251927777,0.0004,57576.0,57575.0,0.06929088]
[1725251928183,0.19059226,57576.0,57575.0,0.06929088]
[1725251930579,0.19059226,57576.0,57575.0,0.060793]
[1725251931178,0.19059226,57576.0,57574.0,0.0004]
[1725251931377,0.0004,57575.0,57574.0,0.0004]
[1725251931795,0.19142476,57575.0,57574.0,0.0004]
[1725251934382,0.19142476,57575.0,57574.0,0.21955112]
[1725251934584,0.19142476,57575.0,57574.0,0.21949322]
[1725251935086,0.19142476,57575.0,57574.0,0.21949292]
[1725251935386,0.19142476,57575.0,57574.0,0.21949281]
[1725251935584,0.19142476,57575.0,57574.0,0.13274713]
[1725251936380,0.19142476,57575.0,57574.0,0.27354113]
[1725251937185,0.19142476,57575.0,57574.0,0.27353912]
[1725251937378,0.19142476,57575.0,57574.0,0.32283912]
[1725251940992,0.19142476,57575.0,57574.0,0.84391507]
[1725251941304,0.0004,57575.0,57574.0,0.84391507]
[1725251941799,0.00026039,57585.0,57584.0,0.060783]
[1725251942088,0.00026039,57585.0,57584.0,0.14798073]
[1725251942298,0.00026039,57585.0,57584.0,0.061183]
[1725251947039,0.00026039,57585.0,57584.0,0.06738608]
[1725251947794,0.00026039,57585.0,57584.0,0.15418381]
[1725251948199,0.00026039,57585.0,57584.0,0.06738608]
[1725251948498,0.00026039,57585.0,57584.0,0.14738608]
[1725251950684,0.00026039,57585.0,57584.0,0.06738608]
[1725251950898,0.00026039,57585.0,57584.0,0.08660308]
[1725251953088,0.00026039,57585.0,57584.0,0.0804]
[1725251953289,0.25946672,57585.0,57584.0,0.0004]
[1725251953494,0.30506672,57585.0,57584.0,0.0004]
[1725251953697,0.30506672,57585.0,57584.0,0.06972826]
[1725251954086,0.30506672,57585.0,57584.0,0.0004]
[1725251954506,0.30506672,57585.0,57584.0,0.05239953]
[1725251957196,0.30506672,57585.0,57584.0,0.05852243]
[1725251958294,0.30506672,57585.0,57584.0,0.05239953]
[1725251959504,0.38506672,57585.0,57584.0,0.0004]
[1725251959709,0.45405306,57585.0,57584.0,0.0004]
[1725251960002,0.38506672,57585.0,57584.0,0.0004]
[1725251960200,0.44584872,57585.0,57584.0,0.0004]
[1725251961803,0.80664872,57585.0,57584.0,0.0004]
[1725251962504,0.80664872,57585.0,57584.0,0.05241584]
[1725251962802,1.99668862,57585.0,57584.0,0.05241584]
[1725251963303,1.39668862,57585.0,57584.0,0.05241584]
[1725251963586,1.99668862,57585.0,57584.0,0.05241584]
[1725251964199,0.72664872,57585.0,57584.0,0.0004]
[1725251965996,0.79572862,57585.0,57584.0,0.0004]
[1725251966191,0.79572862,57585.0,57584.0,0.05244461]
[1725251966401,0.79575642,57585.0,57584.0,0.05244461]
[1725251966726,0.79575991,57585.0,57584.0,0.05244461]
[1725251967713,0.182358,57581.0,57580.0,7.1e-07]
[1725251967905,0.182358,57581.0,57574.0,0.0004]
[1725251967906,0.060788,57580.0,57574.0,0.0004]
[1725251968107,0.3608,57575.0,57574.0,0.0004]
[1725251968309,0.88188,57575.0,57574.0,0.0004]
[1725251968508,1.16007851,57575.0,57574.0,0.0004]
[1725251969000,0.76058451,57575.0,57574.0,0.0004]
[1725251970316,0.69979151,57575.0,57574.0,0.05240209]
[1725251970406,0.69979151,57575.0,57574.0,0.0004]
[1725251970704,0.70584339,57575.0,57574.0,0.0004]
[1725251971204,0.70584339,57575.0,57574.0,0.05239294]
[1725251972508,0.70584339,57575.0,57574.0,0.05238236]
[1725251972708,0.65794339,57575.0,57574.0,0.05238236]
[1725251973209,0.65794339,57575.0,57574.0,0.0004]
[1725251974509,0.65794339,57575.0,57574.0,0.05238236]
[1725251975511,0.61094339,57575.0,57574.0,0.05238236]
[1725251978551,0.61094339,57575.0,57574.0,0.0004]
[1725251979425,0.69094339,57575.0,57574.0,0.0004]
[1725251979619,0.69094339,57575.0,57574.0,0.05238236]
[1725251980021,0.69094339,57575.0,57574.0,0.0004]
[1725251980321,0.69094339,57575.0,57574.0,0.05238236]
[1725251980719,0.69094339,57575.0,57574.0,0.0004]
[1725251982017,0.69094339,57575.0,57574.0,0.05238236]
[1725251982417,0.25014339,57575.0,57574.0,0.13238236]
[1725251982642,0.24409151,57575.0,57574.0,0.0804]
[1725251982931,0.24409151,57575.0,57574.0,0.0004]
[1725251984732,0.60489151,57575.0,57574.0,0.0004]
[1725251986634,0.66568451,57575.0,57574.0,0.0004]
[1725251986844,0.66568451,57575.0,57574.0,0.0524121]
[1725251989144,0.73468936,57575.0,57574.0,0.0004]
[1725251989449,0.66568451,57575.0,57574.0,0.0004]
[1725251990537,0.74568451,57575.0,57574.0,0.0004]
[1725251990845,0.74568451,57575.0,57574.0,0.0524121]
[1725251993560,0.74568451,57575.0,57574.0,0.0004]
[1725252000748,0.81483234,57575.0,57574.0,0.0004]
[1725252001954,0.74568451,57575.0,57574.0,0.0004]
[1725252009865,0.18329851,57575.0,57574.0,0.0004]
[1725252010258,0.19649977,57577.0,57574.0,0.0004]
[1725252010452,0.06921003,57578.0,57574.0,0.0004]
[1725252010651,0.43001003,57578.0,57574.0,0.0004]
[1725252010860,0.060793,57575.0,57574.0,0.0004]
[1725252011263,0.25319427,57575.0,57574.0,0.0004]
[1725252015665,0.3224043,57575.0,57574.0,0.0004]
[1725252015894,0.25319427,57575.0,57574.0,0.0004]
[1725252020561,0.32237386,57575.0,57574.0,0.0004]
[1725252021070,0.25319427,57575.0,57574.0,0.0004]
[1725252027074,0.32237386,57575.0,57574.0,0.0004]
[1725252029772,0.25319427,57575.0,57574.0,0.0004]
[1725252031274,0.61399427,57575.0,57574.0,0.0004]
[1725252038574,0.69399427,57575.0,57574.0,0.0004]
[1725252038890,0.76322557,57575.0,57574.0,0.0004]
[1725252039187,0.69399427,57575.0,57574.0,0.0004]
[1725252044783,0.33319427,57575.0,57574.0,0.0004]
[1725252045390,0.25319427,57575.0,57574.0,0.0004]
[1725252045591,0.35705643,57575.0,57574.0,0.0004]
[1725252046685,0.25319427,57575.0,57574.0,0.0004]
[1725252047086,0.35705904,57575.0,57574.0,0.0004]
[1725252047290,0.35706165,57575.0,57574.0,0.0004]
[1725252047495,0.25319427,57575.0,57574.0,0.0004]
[1725252047794,0.35706231,57575.0,57574.0,0.0004]
[1725252048189,0.25319427,57575.0,57574.0,0.0004]
[1725252050089,0.35707873,57575.0,57574.0,0.0004]
[1725252050398,0.35708142,57575.0,57574.0,0.0004]
[1725252050691,0.35710326,57575.0,57574.0,0.0004]
[1725252050898,0.25319427,57575.0,57574.0,0.0004]
[1725252051994,0.32248019,57575.0,57574.0,0.0004]
[1725252052390,0.38327319,57575.0,57574.0,0.0004]
[1725252052599,0.36198727,57575.0,57574.0,0.0004]
[1725252052991,0.44859468,57575.0,57574.0,0.0004]
[1725252053294,0.36198727,57575.0,57574.0,0.0004]
[1725252053495,0.44859468,57575.0,57574.0,0.0004]
[1725252054196,0.36198727,57575.0,57574.0,0.0004]
[1725252054705,0.44859468,57575.0,57574.0,0.0004]
[1725252054915,0.44859468,57575.0,57558.0,0.060811]
[1725252054916,0.121598,57569.0,57568.0,4e-07]
[1725252055218,0.060807,57562.0,57556.0,0.08]
[1725252055480,0.060807,57562.0,57558.0,0.08]
[1725252055481,0.49078632,57562.0,57558.0,0.08]
[1725252055587,0.24576127,57561.0,57558.0,0.08]
[1725252056195,0.060811,57558.0,57553.0,0.08663728]
[1725252056390,0.060811,57558.0,57552.0,0.16663728]
[1725252056661,0.18260585,57557.0,57552.0,0.16663728]
[1725252056804,0.18260585,57557.0,57555.0,0.08]
[1725252056990,0.18260585,57557.0,57556.0,0.0452]
[1725252057592,0.18260585,57557.0,57556.0,0.0902]
[1725252057993,0.19969675,57561.0,57556.0,0.0902]
[1725252058188,0.502527,57562.0,57556.0,0.0902]
[1725252058189,0.502527,57562.0,57560.0,0.0004]
[1725252058400,0.501607,57562.0,57561.0,0.0004]
[1725252058704,0.69286729,57562.0,57560.0,0.0004]
[1725252059205,0.69286729,57562.0,57561.0,0.05200337]
[1725252060002,0.69286729,57562.0,57561.0,0.052003]
[1725252060302,0.69286729,57562.0,57561.0,0.05200118]
[1725252060499,0.69286729,57562.0,57560.0,0.0004]
[1725252061709,0.33206729,57562.0,57560.0,0.0004]
[1725252062507,0.33206729,57562.0,57560.0,0.05238555]
[1725252062715,0.33206729,57562.0,57561.0,0.05198555]
[1725252063600,0.33206729,57562.0,57560.0,0.05238555]
[1725252063801,0.19126029,57562.0,57560.0,0.0004]
[1725252064251,0.18170657,57563.0,57561.0,0.05197989]
[1725252064423,0.3608,57564.0,57562.0,0.05237989]
[1725252064608,0.36706288,57564.0,57563.0,0.0004]
[1725252064953,0.36706288,57564.0,57562.0,0.05237989]
[1725252064954,0.19858415,57563.0,57562.0,0.05237989]
[1725252065018,0.061205,57563.0,57562.0,0.0004]
[1725252065510,0.25978915,57563.0,57562.0,0.0004]
[1725252070709,0.19898415,57563.0,57562.0,0.0004]
[1725252073807,0.32896847,57563.0,57562.0,0.0004]
[1725252075011,0.25978915,57563.0,57562.0,0.0004]
[1725252077305,0.62058915,57563.0,57562.0,0.05237989]
[1725252079228,0.62058915,57563.0,57562.0,0.0004]
[1725252081236,0.25978915,57563.0,57562.0,0.0004]
[1725252081416,0.62058915,57563.0,57562.0,0.0004]
[1725252082301,0.62058915,57563.0,57562.0,0.05246338]
[1725252083213,0.62058915,57563.0,57562.0,0.0004]
[1725252083415,0.55978415,57563.0,57562.0,0.0004]
[1725252083620,0.19898415,57563.0,57562.0,0.0004]
[1725252084301,0.19898415,57563.0,57562.0,0.061207]
[1725252093524,0.19898415,57563.0,57562.0,0.154607]
[1725252094932,0.19898415,57563.0,57562.0,0.061207]
[1725252101693,0.26832727,57563.0,57562.0,0.061207]
[1725252101814,0.19898415,57563.0,57562.0,0.061207]
[1725252102130,0.26832727,57563.0,57562.0,0.061207]
[1725252102427,0.19898415,57563.0,57562.0,0.061207]
[1725252103332,0.26832727,57563.0,57562.0,0.061207]
[1725252105176,0.19898415,57563.0,57562.0,0.2802181]
[1725252105231,0.19898415,57563.0,57562.0,0.19358082]
[1725252109931,0.0004,57563.0,57562.0,0.71474082]
[1725252110134,0.00026039,57566.0,57565.0,0.060803]
[1725252110437,0.00026039,57566.0,57565.0,0.27317682]
[1725252111329,0.00026039,57566.0,57565.0,0.27397682]
[1725252111745,0.00026039,57566.0,57565.0,0.2739641]
[1725252114027,0.27101638,57566.0,57565.0,0.1939641]
[1725252114236,0.27101638,57566.0,57565.0,0.28075061]